bitfinex-derivatives/quotes_ETHF0:USTF0_20241230
["timestamp","ask_amount","ask_price","bid_price","bid_amount"]
[1735601777599,8.02313427,3365.2,3364.5,0.29777]
[1735601777898,8.02313427,3365.2,3364.9,0.29773]
[1735601778806,3.352,3365.2,3364.9,0.29773]
[1735601778993,3.352,3365.2,3364.4,44.0078]
[1735601779305,3.352,3365.2,3364.5,0.29776]
[1735601779306,3.64971,3365.2,3364.5,0.29776]
[1735601779494,0.29771,3365.1,3364.6,0.29775]
[1735601780204,3.2078,3365.0,3364.6,0.29775]
[1735601780395,3.2078,3365.0,3364.7,0.29775]
[1735601780597,3.2078,3365.0,3364.6,0.29775]
[1735601781101,3.2078,3365.0,3364.7,0.29775]
[1735601781603,3.352,3365.2,3364.9,0.29773]
[1735601781796,3.64971,3365.2,3364.9,0.29773]
[1735601782903,0.29771,3365.1,3364.9,0.29773]
[1735601783603,3.352,3365.2,3364.4,44.0078]
[1735601783906,0.29775,3364.7,3364.5,0.29776]
[1735601784108,1.0799,3364.6,3364.4,44.0078]
[1735601784412,1.052,3364.5,3364.4,44.30557]
[1735601784599,2.1256,3364.5,3364.4,44.30557]
[1735601785504,2.42337,3364.5,3364.4,44.0078]
[1735601785694,2.1256,3364.5,3364.4,44.0078]
[1735601785898,2.1256,3364.5,3364.4,44.30558]
[1735601786909,2.42337,3364.5,3364.4,44.0078]
[1735601787101,2.1256,3364.5,3364.4,44.0078]
[1735601787306,2.1256,3364.5,3364.4,44.30558]
[1735601789108,1.052,3364.5,3364.4,44.30558]
[1735601797014,1.052,3364.5,3364.4,44.0078]
[1735601797015,1.34977,3364.5,3364.4,44.0078]
[1735601797516,1.052,3364.5,3364.4,44.0078]
[1735601797813,1.052,3364.5,3364.4,44.30558]
[1735601801912,1.052,3364.5,3364.4,41.09778]
[1735601802910,1.34977,3364.5,3364.4,40.8]
[1735601806616,0.29778,3364.3,3364.2,4.66013193]
[1735601806820,2.54455284,3364.3,3364.2,4.66013193]
[1735601807119,5.75235284,3364.3,3364.2,42.07233193]
[1735601807322,0.2978,3364.1,3364.0,6.98192003]
[1735601808022,0.29782,3363.9,3363.8,40.8]
[1735601808325,2.54459284,3363.9,3363.8,40.8]
[1735601809214,2.54459284,3363.9,3363.5,6.98192003]
[1735601809215,0.29785,3363.6,3363.5,6.98192003]
[1735601809416,2.54462284,3363.6,3363.5,6.98192003]
[1735601810022,2.54462284,3363.6,3363.1,11.65911691]
[1735601810023,0.29788,3363.2,3363.1,0.29788]
[1735601810424,3.1823,3363.5,3363.0,6.98192003]
[1735601810619,0.29788,3363.2,3363.1,41.09789]
[1735601811424,3.50571293,3363.7,3363.1,40.8]
[1735601811623,3.50571293,3363.7,3363.6,0.29785]
[1735601812825,0.29783,3363.8,3363.6,0.29785]
[1735601813027,3.2078,3363.9,3363.5,1.127]
[1735601813225,0.29784,3363.7,3363.6,0.29784]
[1735601814528,0.29784,3363.7,3363.5,1.127]
[1735601814726,0.29786,3363.5,3363.4,0.29786]
[1735601814932,0.29787,3363.4,3363.3,0.29787]
[1735601816727,2.24677284,3363.8,3363.2,3.2078]
[1735601816923,0.29788,3363.2,3363.1,40.8]
[1735601818227,2.24677284,3363.2,3362.5,2.1855]
[1735601818431,2.24677284,3363.2,3362.5,1.1081]
[1735601818432,0.29793,3362.6,3362.5,1.1081]
[1735601818732,2.24677284,3362.9,3362.4,6.98192003]
[1735601818935,0.29793,3362.7,3362.4,6.98192003]
[1735601819130,0.29793,3362.7,3362.4,7.27986003]
[1735601820037,0.29793,3362.7,3362.4,0.29794]
[1735601821833,0.29792,3362.8,3362.5,3.2078]
[1735601822031,3.2078,3363.0,3362.9,0.29791]
[1735601822837,3.2078,3363.0,3362.9,41.09791]
[1735601823132,3.2078,3363.0,3362.9,40.8]
[1735601823340,3.2078,3363.0,3362.9,41.09791]
[1735601824131,4.3302,3363.6,3362.9,44.0078]
[1735601824439,0.29784,3363.7,3363.0,2.1229]
[1735601824638,0.29785,3363.6,3363.3,0.29787]
[1735601824847,3.29797284,3363.8,3363.0,3.1847]
[1735601825050,0.29789,3363.1,3363.0,2.1229]
[1735601825749,0.29789,3363.2,3363.0,2.4208]
[1735601826345,0.29788,3363.3,3363.1,0.29789]
[1735601826544,1.0523,3363.4,3363.1,0.29789]
[1735601826844,5.45457284,3363.5,3363.2,0.29788]
[1735601826845,3.2078,3363.5,3363.2,0.29788]
[1735601827041,0.29786,3363.4,3363.2,0.29788]
[1735601827248,1.0523,3363.7,3363.0,2.1229]
[1735601827649,1.0512,3363.8,3363.7,0.29784]
[1735601827948,1.0512,3363.8,3363.6,0.29784]
[1735601827949,1.34903,3363.8,3363.6,0.29784]
[1735601828152,1.0512,3363.8,3363.3,3.2078]
[1735601828451,6.50577284,3363.8,3363.0,2.1229]
[1735601828641,0.29787,3363.4,3363.1,0.29788]
[1735601828846,0.29787,3363.3,3363.1,0.29788]
[1735601829046,0.29788,3363.3,3363.0,2.42079]
[1735601829447,0.29788,3363.2,3363.0,2.42079]
[1735601829847,2.24677284,3363.2,3362.9,44.0078]
[1735601830050,0.2979,3363.0,3362.9,44.0078]
[1735601830353,2.24677284,3363.2,3362.7,2.1858]
[1735601830354,0.29791,3362.9,3362.7,2.48372]
[1735601830653,0.29791,3362.9,3362.8,40.8]
[1735601831653,2.24677284,3363.2,3362.8,40.8]
[1735601831851,0.2979,3363.0,3362.8,40.8]
[1735601832055,0.29791,3362.9,3362.8,40.8]
[1735601832656,0.2979,3363.0,3362.8,41.09791]
[1735601833446,2.24677284,3363.2,3362.8,40.8]
[1735601833651,0.29791,3362.9,3362.8,40.8]
[1735601833953,2.54468284,3362.9,3362.8,40.8]
[1735601835451,0.29791,3362.9,3362.8,40.8]
[1735601836450,2.54468284,3362.9,3362.8,40.8]
[1735601836958,0.29793,3362.7,3362.6,0.00178149]
[1735601837360,0.29793,3362.7,3362.6,40.80178149]
[1735601837552,1.41903,3362.7,3362.6,40.80178149]
[1735601840057,1.41903,3362.7,3362.6,0.00178149]
[1735601841154,1.41903,3362.7,3362.2,40.8]
[1735601841155,0.29796,3362.3,3362.2,40.8]
[1735601845668,2.24677284,3362.5,3361.8,2.4994]
[1735601845964,0.298,3361.9,3361.8,2.2014]
[1735601846264,0.29799,3362.1,3361.9,0.29799]
[1735601846460,0.29796,3362.3,3361.8,43.2994]
[1735601846767,2.1258,3362.4,3361.8,43.2994]
[1735601846768,0.29799,3362.0,3361.8,43.2994]
[1735601847263,0.298,3361.9,3361.8,43.2994]
[1735601848263,0.29799,3362.0,3361.8,43.2994]
[1735601848959,0.29799,3362.1,3361.9,0.298]
[1735601849361,0.29799,3362.1,3361.8,43.0014]
[1735601849362,2.1258,3362.4,3361.8,43.0014]
[1735601849560,0.29799,3362.0,3361.8,43.2994]
[1735601850063,0.29799,3362.0,3361.9,0.298]
[1735601850660,0.29799,3362.0,3361.8,43.2994]
[1735601850959,2.1258,3362.4,3361.9,0.298]
[1735601851159,0.29798,3362.1,3361.9,0.298]
[1735601851464,2.42376,3362.4,3362.2,0.29797]
[1735601853467,2.42376,3362.4,3361.8,43.0014]
[1735601853468,2.1258,3362.4,3361.8,43.0014]
[1735601853759,2.1258,3362.4,3362.2,0.29797]
[1735601853964,0.29796,3362.3,3362.2,0.29797]
[1735601854167,0.29796,3362.3,3361.8,43.0014]
[1735601854361,0.29798,3362.2,3361.8,43.0014]
[1735601854560,0.29799,3362.1,3361.9,0.29799]
[1735601854769,2.1258,3362.4,3361.8,43.2994]
[1735601854770,0.29799,3362.0,3361.8,43.2994]
[1735601854961,0.298,3361.9,3361.8,43.0014]
[1735601855165,0.298,3361.9,3361.8,43.29941]
[1735601855563,0.29799,3362.0,3361.9,0.298]
[1735601855958,1.33838,3362.1,3361.9,0.298]
[1735601857568,3.2078,3362.2,3362.1,0.29798]
[1735601858874,3.50577,3362.2,3362.1,0.29798]
[1735601859264,3.2078,3362.2,3362.1,0.29798]
[1735601859670,3.50571293,3362.9,3362.1,8.2078]
[1735601859869,3.50571293,3362.9,3362.8,0.29792]
[1735601860068,4.67113427,3363.1,3363.0,0.2979]
[1735601860268,0.77501527,3363.1,3363.0,44.3057]
[1735601860471,0.75491527,3363.1,3363.0,49.3057]
[1735601860771,5.83428375,3363.7,3363.6,0.29785]
[1735601860966,5.83428375,3363.7,3363.5,3.50565]
[1735601861566,5.83428375,3363.7,3363.5,3.2078]
[1735601861769,1.0395,3363.6,3363.5,3.50565]
[1735601861969,5.83428375,3363.7,3363.6,0.29785]
[1735601862467,0.975,3364.1,3363.6,2.24677284]
[1735601862667,3.2078,3364.3,3364.2,0.29779]
[1735601863068,3.2078,3364.3,3364.2,41.09779]
[1735601863671,3.2078,3364.3,3364.2,40.8]
[1735601863868,3.50558,3364.3,3364.2,40.8]
[1735601866274,3.50558,3364.3,3363.9,0.29781]
[1735601866275,3.2078,3364.3,3363.9,0.29781]
[1735601866573,0.29781,3364.1,3363.9,0.29781]
[1735601867770,0.29781,3364.1,3363.8,0.29782]
[1735601868778,0.29781,3364.1,3363.8,0.29783]
[1735601869680,5.45457284,3364.3,3363.6,40.8]
[1735601869979,0.29783,3363.8,3363.6,40.8]
[1735601870279,0.29781,3364.1,3363.8,0.29782]
[1735601870479,0.29781,3364.1,3363.9,0.29782]
[1735601870678,0.29781,3364.1,3363.8,0.29782]
[1735601871581,0.2978,3364.2,3363.9,0.29782]
[1735601871781,0.29779,3364.2,3363.9,0.29782]
[1735601872480,0.29781,3364.1,3363.8,0.29783]
[1735601872883,2.0503,3364.6,3364.4,0.29777]
[1735601873077,2.0503,3364.6,3364.0,3.2078]
[1735601873377,2.0503,3364.6,3364.5,0.29777]
[1735601874081,2.0503,3364.6,3364.0,3.2078]
[1735601874269,2.0503,3364.6,3364.5,0.29777]
[1735601874476,2.0503,3364.6,3364.5,41.09777]
[1735601877078,2.0503,3364.6,3364.5,40.8]
[1735601877279,0.2978,3364.1,3364.0,3.2078]
[1735601877683,2.0503,3364.6,3363.3,9.97336287]
[1735601877684,0.29782,3363.9,3363.6,3.2078]
[1735601877884,0.987,3363.8,3363.6,3.2078]
[1735601878174,0.987,3363.8,3363.7,0.29784]
[1735601878779,0.987,3363.8,3363.7,41.09784]
[1735601880778,1.0268,3364.3,3363.7,40.8]
[1735601881096,9.27898789,3421.9,3365.0,0.29771]
[1735601881097,3.5055,3365.3,3365.0,0.29771]
[1735601881283,5.264,3365.3,3365.1,0.29771]
[1735601881579,5.264,3365.3,3364.6,3.9522]
[1735601882089,5.264,3365.3,3365.2,0.2977]
[1735601882781,5.264,3365.3,3365.2,41.0977]
[1735601883378,5.264,3365.3,3365.2,44.3055]
[1735601883379,2.0562,3365.3,3365.2,44.3055]
[1735601884087,2.0562,3365.3,3365.2,44.0078]
[1735601884688,2.3539,3365.3,3365.2,44.0078]
[1735601884881,2.0562,3365.3,3365.2,44.0078]
[1735601885080,2.0562,3365.3,3365.2,44.3055]
[1735601885985,2.0562,3365.3,3365.2,3.5055]
[1735601886180,1.0784,3365.3,3365.2,3.5055]
[1735601886378,4.2447,3365.8,3365.5,0.29767]
[1735601886379,0.29767,3365.6,3365.5,0.29767]
[1735601886684,0.29767,3365.6,3365.2,44.0078]
[1735601886987,0.29767,3365.6,3365.4,0.29768]
[1735601887383,0.29767,3365.6,3365.2,44.0078]
[1735601887785,0.29767,3365.6,3365.4,0.29768]
[1735601889182,0.29768,3365.5,3365.2,44.0078]
[1735601889382,0.29768,3365.5,3365.3,0.2977]
[1735601890995,0.29769,3365.4,3365.2,44.0078]
[1735601891188,0.29769,3365.4,3365.3,0.2977]
[1735601891594,1.0377,3365.7,3365.3,0.2977]
[1735601891798,0.29769,3365.4,3365.3,0.2977]
[1735601892593,0.29769,3365.4,3365.2,44.3055]
[1735601892990,1.0377,3365.7,3365.2,44.3055]
[1735601892991,0.2977,3365.3,3365.2,44.0078]
[1735601894490,1.78186,3365.7,3365.2,44.0078]
[1735601894491,1.0377,3365.7,3365.6,0.29767]
[1735601894698,3.2078,3366.2,3366.1,0.29762]
[1735601894906,2.3976,3366.4,3366.1,0.29762]
[1735601895090,2.1,3366.4,3365.6,5.45457284]
[1735601895291,2.1,3366.4,3366.2,41.09761]
[1735601895691,2.1,3366.4,3366.2,40.8]
[1735601895896,6.53484097,3367.1,3366.2,43.04677284]
[1735601896112,5.52974097,3367.1,3366.9,0.29755]
[1735601896308,2.32194097,3367.1,3367.0,3.50535]
[1735601896504,1.0186,3367.5,3367.0,3.2078]
[1735601896707,4.2264,3367.5,3367.0,3.2078]
[1735601896904,4.2264,3367.5,3367.1,40.8]
[1735601897212,4.2264,3367.5,3367.0,3.2078]
[1735601897501,0.29751,3367.4,3367.0,3.50534]
[1735601898105,4.2264,3367.5,3367.2,40.8]
[1735601898305,0.29752,3367.3,3367.2,40.8]
[1735601900506,4.2264,3367.5,3367.0,3.2078]
[1735601900712,0.29754,3367.1,3367.0,3.2078]
[1735601903307,0.29755,3366.9,3366.8,40.8]
[1735601906918,0.29755,3367.0,3366.8,40.8]
[1735601907216,0.29755,3366.9,3366.8,40.8]
[1735601910917,1.217,3367.0,3366.1,0.29762]
[1735601911218,0.29762,3366.2,3366.1,0.29762]
[1735601911410,0.29762,3366.2,3366.1,41.09762]
[1735601911815,2.0794,3366.4,3366.1,41.09762]
[1735601912015,0.29761,3366.3,3366.1,41.09762]
[1735601912416,2.377,3366.4,3366.1,41.09762]
[1735601914521,2.0794,3366.4,3366.1,40.8]
[1735601914722,0.29761,3366.3,3366.1,40.8]
[1735601914914,0.29761,3366.3,3366.1,41.09762]
[1735601915619,1.0121,3366.2,3366.1,41.09762]
[1735601918222,1.0121,3366.2,3366.1,40.8]
[1735601918424,1.30972,3366.2,3366.1,40.8]
[1735601924121,3.2078,3366.5,3366.1,40.8]
[1735601924324,1.0762,3366.7,3366.1,2.99084284]
[1735601924524,1.0762,3366.7,3366.6,0.29758]
[1735601924829,5.52974097,3367.1,3366.6,0.29758]
[1735601924830,5.82728097,3367.1,3366.6,40.8]
[1735601925029,5.82728097,3367.1,3366.9,0.29755]
[1735601925230,5.52974097,3367.1,3366.6,40.8]
[1735601925522,0.29757,3366.8,3366.6,41.09758]
[1735601926726,5.45457284,3367.1,3366.6,40.8]
[1735601926925,1.27137,3366.7,3366.6,40.8]
[1735601928627,1.27137,3366.7,3366.1,0.29762]
[1735601928628,4.1816,3366.7,3366.1,0.29762]
[1735601928822,0.29761,3366.4,3366.1,0.29762]
[1735601929324,2.24677284,3366.5,3366.2,40.8]
[1735601929525,0.29761,3366.3,3366.2,40.8]
[1735601930523,5.75218284,3366.3,3366.2,40.8]
[1735601933027,3.50541,3366.3,3366.2,40.8]
[1735601943735,5.45457284,3366.3,3365.7,4.94460208]
[1735601943936,0.29765,3365.9,3365.7,4.94460208]
[1735601944242,1.0745,3365.8,3365.7,4.64695208]
[1735601944437,1.37215,3365.8,3365.7,4.64695208]
[1735601944739,1.37215,3365.8,3365.7,45.44695208]
[1735601944740,3.44555,3365.8,3365.7,45.44695208]
[1735601945638,3.44555,3365.8,3365.7,40.8]
[1735601948742,3.2078,3365.9,3365.8,0.29765]
[1735601950542,0.29765,3365.8,3365.7,40.8]
[1735601951050,0.29765,3365.8,3365.5,4.64695208]
[1735601951051,0.29767,3365.6,3365.5,4.64695208]
[1735601951445,0.29767,3365.6,3365.5,45.44695208]
[1735601951752,1.37877,3365.6,3365.5,45.44695208]
[1735601952044,1.37877,3365.6,3365.5,40.8]
[1735601954841,2.32194097,3365.8,3365.5,40.8]
[1735601955044,2.22164097,3365.8,3365.7,0.29766]
[1735601955251,1.18751523,3365.8,3365.7,0.29766]
[1735601955437,4.6358907,3366.0,3365.7,7.24677284]
[1735601955638,4.6358907,3366.0,3365.9,44.30544]
[1735601956050,4.6358907,3366.0,3365.9,49.30544]
[1735601956254,0.0358907,3366.0,3365.9,49.30544]
[1735601956746,0.29755,3367.0,3366.7,0.29756]
[1735601957044,0.29756,3366.8,3366.5,0.29758]
[1735601957248,3.2078,3367.1,3366.3,3.2078]
[1735601957441,0.29755,3367.0,3366.7,41.09757]
[1735601958142,0.29755,3367.0,3366.7,45.76457175]
[1735601958545,0.29756,3366.8,3366.7,45.46700175]
[1735601959049,0.29756,3366.8,3366.7,4.66700175]
[1735601959453,0.29757,3366.7,3366.6,4.66700175]
[1735601960338,0.29757,3366.7,3366.5,40.8]
[1735601960553,0.29757,3366.7,3366.5,47.80050262]
[1735601962150,0.29756,3366.9,3366.6,0.29758]
[1735601962355,0.29755,3367.0,3366.7,0.29756]
[1735601963250,4.2626,3367.1,3366.8,0.29756]
[1735601963251,4.56014,3367.1,3366.8,0.29756]
[1735601966249,4.2626,3367.1,3366.9,0.29755]
[1735601967550,1.0548,3367.1,3366.9,0.29755]
[1735601969750,1.0548,3367.1,3366.7,3.2078]
[1735601969949,1.35234,3367.1,3366.8,0.29756]
[1735601972250,1.35234,3367.1,3366.7,7.87379953]
[1735601972251,1.35234,3367.1,3366.9,0.29755]
[1735601972856,0.29755,3367.0,3366.8,0.29756]
[1735601973058,0.29756,3366.8,3366.7,4.66599953]
[1735601973253,0.29756,3366.8,3366.7,1.37939953]
[1735601974364,2.24677284,3367.0,3366.6,40.8]
[1735601974562,0.29757,3366.7,3366.6,40.8]
[1735601974869,1.0548,3367.1,3367.0,0.29755]
[1735601976565,1.35234,3367.1,3367.0,0.29755]
[1735601976765,1.35234,3367.1,3366.7,4.2576]
[1735601977065,0.29755,3367.0,3366.9,0.29755]
[1735601977456,0.29755,3367.0,3366.8,0.29756]
[1735601978257,1.0548,3367.1,3366.7,3.2078]
[1735601978454,0.29756,3366.8,3366.7,3.2078]
[1735601978658,0.29756,3366.9,3366.7,3.50537]
[1735601981255,1.0548,3367.1,3366.7,3.2078]
[1735601981461,0.29756,3366.8,3366.6,41.09758]
[1735601981755,4.2626,3367.1,3366.6,40.8]
[1735601981955,0.29757,3366.7,3366.6,40.8]
[1735601982969,2.54434284,3366.7,3366.6,40.8]
[1735601983669,2.54434284,3366.7,3366.4,7.00050262]
[1735601983670,5.45457284,3366.7,3366.4,7.00050262]
[1735601983964,5.45457284,3366.7,3365.7,4.2333]
[1735601983965,0.29763,3366.1,3366.0,7.00050262]
[1735601984166,0.29762,3366.2,3366.0,48.09813262]
[1735601984971,0.29763,3366.1,3366.0,47.80050262]
[1735601985468,0.29763,3366.1,3366.0,40.8]
[1735601991371,1.0376,3366.5,3366.0,40.8]
[1735601991866,0.29762,3366.2,3366.0,40.8]
[1735601993168,1.0376,3366.5,3366.0,40.8]
[1735601993368,0.29762,3366.2,3366.0,40.8]
[1735601997476,0.29762,3366.2,3366.0,41.09763]
[1735601997880,1.0376,3366.5,3365.8,7.00050262]
[1735601998171,1.0376,3366.5,3365.9,0.29764]
[1735601998477,1.0376,3366.5,3366.0,40.8]
[1735601998873,0.29763,3366.1,3366.0,40.8]
[1735601999475,0.29762,3366.2,3366.0,41.09763]
[1735602001073,1.0376,3366.5,3366.0,40.8]
[1735602001377,0.29762,3366.2,3366.0,40.8]
[1735602002378,0.29763,3366.1,3366.0,47.80050262]
[1735602003779,0.29763,3366.1,3365.6,12.70221691]
[1735602003780,12.26557284,3366.1,3365.6,11.30580434]
[1735602003981,7.99900568,3365.7,3365.6,1.68543889]
[1735602004282,0.29769,3365.4,3365.3,14.17189805]
[1735602004477,2.54446284,3365.4,3365.3,7.28309882]
[1735602004886,2.54446284,3365.4,3365.3,5.65519882]
[1735602005181,0.29777,3364.5,3364.4,1.37527]
[1735602005477,0.29777,3364.5,3364.4,1.0775]
[1735602005776,0.29777,3364.5,3364.4,1.37528]
[1735602007280,0.29777,3364.5,3364.4,1.0775]
[1735602007478,2.54454284,3364.5,3364.4,1.0775]
[1735602007678,2.54454284,3364.5,3364.4,41.8775]
[1735602009483,2.54454284,3364.5,3364.4,1.0775]
[1735602011478,3.2078,3364.8,3364.4,1.0775]
[1735602011679,0.595,3365.1,3364.4,1.0775]
[1735602011883,0.29777,3364.6,3364.4,1.37527]
[1735602012085,0.29777,3364.6,3364.5,40.8]
[1735602013593,5.02289,3365.2,3364.5,40.8]
[1735602013594,3.8028,3365.6,3364.5,40.8]
[1735602013793,0.2977,3365.3,3365.0,0.29772]
[1735602013993,0.2977,3365.3,3365.1,1.40041]
[1735602015495,2.24677284,3365.5,3365.1,1.1027]
[1735602015698,3.2078,3365.6,3365.1,1.1027]
[1735602015892,0.29765,3365.9,3365.6,0.29766]
[1735602016100,5.45457284,3366.1,3365.8,0.29765]
[1735602016101,3.2078,3366.1,3365.8,0.29765]
[1735602016290,3.2078,3366.1,3365.9,1.0143]
[1735602016696,3.2078,3366.1,3366.0,40.8]
[1735602016697,3.50543,3366.1,3366.0,40.8]
[1735602016903,0.29763,3366.1,3366.0,40.8]
[1735602017798,3.48756424,3366.2,3366.0,40.8]
[1735602017799,3.78518424,3366.2,3366.0,40.8]
[1735602018101,2.54439284,3366.3,3366.0,41.09763]
[1735602018302,0.29762,3366.2,3366.0,41.09763]
[1735602018700,0.29762,3366.2,3366.0,40.8]
[1735602019501,2.24677284,3366.6,3366.0,40.8]
[1735602019804,0.29763,3366.1,3366.0,40.8]
[1735602020102,2.24677284,3366.3,3365.9,2.0979]
[1735602020296,0.29763,3366.0,3365.9,2.0979]
[1735602020497,2.24677284,3366.6,3365.9,2.0979]
[1735602020698,0.29761,3366.3,3366.2,3.2078]
[1735602021301,2.24677284,3366.6,3366.2,3.2078]
[1735602021302,0.2976,3366.4,3366.2,3.2078]
[1735602022202,3.2078,3366.7,3366.2,3.2078]
[1735602022399,0.29761,3366.3,3366.2,3.2078]
[1735602023003,2.24677284,3366.6,3366.2,3.2078]
[1735602023304,0.29759,3366.6,3366.3,0.29761]
[1735602025604,0.29759,3366.5,3366.2,3.50541]
[1735602025802,2.54436284,3366.6,3366.3,0.29761]
[1735602027502,2.24677284,3366.6,3366.3,0.29761]
[1735602028003,2.54436284,3366.6,3366.3,0.29761]
[1735602028500,2.54435284,3366.6,3366.3,0.29761]
[1735602029010,3.50538,3366.7,3366.4,0.2976]
[1735602029404,3.50538,3366.7,3366.5,1.0342]
[1735602030311,0.29758,3366.6,3366.5,1.0342]
[1735602030507,3.50538,3366.7,3366.5,1.0342]
[1735602032313,0.29758,3366.6,3366.5,1.0342]
[1735602034516,2.24677284,3366.9,3366.5,1.0342]
[1735602034714,0.29758,3366.7,3366.5,1.33179]
[1735602035216,0.29757,3366.8,3366.6,0.29758]
[1735602035514,0.29757,3366.8,3366.6,1.37508]
[1735602036611,0.29757,3366.7,3366.6,1.37508]
[1735602037211,0.29757,3366.7,3366.5,1.0342]
[1735602037212,0.29758,3366.6,3366.5,1.0342]
[1735602037410,2.24677284,3366.6,3366.2,3.2078]
[1735602037609,0.29761,3366.3,3366.2,3.50541]
[1735602038114,2.0517,3366.5,3366.2,3.2078]
[1735602038411,3.2078,3367.0,3366.2,3.2078]
[1735602038619,3.48756424,3367.2,3366.7,2.24677284]
[1735602038814,3.48756424,3367.2,3367.1,3.50534]
[1735602039012,3.48756424,3367.2,3367.1,44.30534]
[1735602039311,3.38103431,3367.4,3367.3,0.29752]
[1735602039515,3.50526,3368.0,3367.4,0.29751]
[1735602039516,3.38103431,3367.5,3367.4,0.29751]
[1735602040907,3.2078,3368.0,3367.2,1.0001]
[1735602041217,3.2078,3368.0,3367.7,0.29748]
[1735602041409,3.2078,3368.0,3367.9,0.29747]
[1735602042316,3.2078,3368.0,3367.6,3.2078]
[1735602042616,3.2078,3368.0,3367.8,0.29747]
[1735602043317,3.2078,3368.0,3367.7,2.46178]
[1735602043517,3.2078,3368.0,3367.7,2.1643]
[1735602043719,3.2078,3368.0,3367.7,2.46178]
[1735602044220,3.2078,3368.0,3367.7,1.0975]
[1735602044417,0.29748,3367.8,3367.7,1.0975]
[1735602044922,0.29747,3367.9,3367.7,1.0975]
[1735602045821,4.2504,3368.0,3367.7,1.0975]
[1735602045822,0.29748,3367.8,3367.7,1.0975]
[1735602046620,3.2078,3368.0,3367.7,1.39498]
[1735602047316,3.50526,3368.0,3367.7,1.39498]
[1735602047721,3.2078,3368.0,3367.7,1.39498]
[1735602048021,3.2078,3368.0,3367.8,0.29747]
[1735602048215,3.2078,3368.0,3367.7,1.0975]
[1735602048410,3.2078,3368.0,3367.8,0.29747]
[1735602048615,3.2078,3368.0,3367.7,1.0975]
[1735602048815,3.50526,3368.0,3367.7,1.0975]
[1735602049013,3.50526,3368.0,3367.8,0.29748]
[1735602051119,3.50526,3368.0,3367.7,1.39498]
[1735602051322,0.29748,3367.8,3367.7,1.0975]
[1735602052118,0.97882888,3369.0,3367.9,0.29747]
[1735602052423,9.45870685,3369.9,3367.7,1.0975]
[1735602052424,3.50521,3368.5,3368.2,0.29743]
[1735602052621,0.29742,3368.4,3368.3,1.006]
[1735602052928,0.29742,3368.4,3368.3,41.806]
[1735602053123,3.2078,3368.5,3368.3,41.806]
[1735602053425,3.50522,3368.5,3368.3,42.10343]
[1735602053919,1.0706,3368.6,3368.3,41.806]
[1735602054121,3.2078,3369.0,3368.3,41.806]
[1735602054318,1.0706,3369.2,3368.6,3.2078]
[1735602054525,1.36796,3369.2,3369.0,0.29737]
[1735602054828,0.29734,3369.4,3369.2,0.29735]
[1735602055020,0.29734,3369.4,3368.7,1.0177]
[1735602055021,0.29733,3369.5,3369.3,0.29734]
[1735602055222,0.29733,3369.4,3369.2,0.29735]
[1735602055421,3.2078,3369.6,3368.7,2.0631]
[1735602055722,0.29736,3369.2,3369.0,0.29736]
[1735602056022,0.29735,3369.3,3369.1,0.29736]
[1735602056924,3.2078,3369.6,3368.7,2.0631]
[1735602057126,2.54413284,3369.1,3368.8,0.29739]
[1735602057622,0.29737,3369.0,3368.8,0.29739]
[1735602057823,0.29737,3369.0,3368.9,0.9721]
[1735602059229,0.29737,3369.0,3368.6,3.5052]
[1735602059230,2.24677284,3369.1,3368.6,3.2078]
[1735602059528,0.29742,3368.4,3368.3,40.8]
[1735602059923,0.29745,3368.1,3368.0,3.2078]
[1735602060333,0.29745,3368.1,3368.0,44.0078]
[1735602061432,0.29745,3368.1,3368.0,40.8]
[1735602061827,1.29545,3368.1,3368.0,40.8]
[1735602062339,0.29749,3367.6,3367.5,3.2078]
[1735602062739,0.29749,3367.6,3367.5,44.0078]
[1735602064435,0.29749,3367.6,3367.5,40.8]
[1735602069938,0.29747,3368.0,3367.6,0.29749]
[1735602070241,0.998,3368.1,3367.8,0.29747]
[1735602070437,1.29545,3368.1,3367.9,0.29746]
[1735602070642,1.29545,3368.1,3368.0,40.8]
[1735602071147,3.54222284,3368.1,3368.0,40.8]
[1735602071342,0.29752,3367.3,3367.1,0.29753]
[1735602071643,0.74367,3368.0,3367.2,0.29753]
[1735602071644,0.29751,3367.4,3367.2,0.29753]
[1735602071844,3.2078,3367.6,3367.3,40.8]
[1735602072346,0.29751,3367.4,3367.3,40.8]
[1735602077340,2.24677284,3367.5,3366.5,3.2078]
[1735602077646,2.24677284,3367.5,3366.0,6.96780559]
[1735602077647,0.29763,3366.1,3366.0,10.17560559]
[1735602077854,0.29763,3366.1,3366.0,47.76780559]
[1735602078646,0.29763,3366.1,3366.0,40.8]
[1735602083948,2.24677284,3366.2,3365.5,0.9805]
[1735602084155,0.29767,3365.6,3365.5,0.9805]
[1735602085054,0.29767,3365.6,3365.5,41.7805]
[1735602086756,0.29767,3365.6,3365.5,40.8]
[1735602088654,2.54444284,3365.6,3365.5,40.8]
[1735602088848,2.54444284,3365.6,3365.1,3.2078]
[1735602088849,2.24677284,3365.6,3365.1,3.2078]
[1735602089048,2.24677284,3365.3,3364.7,3.2078]
[1735602089254,0.29776,3364.6,3364.4,1.33457]
[1735602089447,0.29773,3364.9,3364.8,40.8]
[1735602089648,2.24677284,3365.0,3364.4,1.0368]
[1735602089649,0.29777,3364.5,3364.4,1.0368]
[1735602090045,0.29777,3364.5,3364.4,41.8368]